Cogmind - Beta 15 @@@ ROGUE MODE // 2025.10.17 @ 20:14:12 Player: octapi Result: Destroyed by D-53 Grenadier with Mini Grenade Launcher Performance ------------- Evolutions (1) 500 Regions Visited (3) 600 Robots Destroyed (24) 120 Value Destroyed (552) 552 Prototype IDs (6) 120 Alien Tech Used (0) 0 Bonus (0) 0 TOTAL SCORE: 1892 Bonus ------- None Cogmind --------- Core Integrity 0/400 Matter 165/300 Energy 41/100 System Corruption 0% Temperature Hot (266) Movement Core (350) Ox6 Location -9/Mines Parts ------- > --- POWER (1) -------- (None) > --- PROPULSION (2) --- (None) > --- UTILITY (4) ------ Large Storage Unit Signal Interpreter > --- WEAPON (2) ------- (None) > --- INVENTORY (15) --- Medium Storage Unit Transport Network Coupler Target Analyzer Authchip [Device] Authchip [Processor] Authchip [Armor] Ion Cannon Rocket Launcher Heavy Hammer Peak State ------------ > --- POWER ------------ Heavy Ion Engine > --- PROPULSION ------- Wheel Compact Wheel > --- UTILITY ---------- Improved Heat Sink Large Storage Unit Signal Interpreter Improved Light Armor Plating > --- WEAPON ----------- Beam Rifle Advanced Beam Cannon > --- INVENTORY -------- Heavy Ion Engine Light Treads Wheel Medium Storage Unit Sensor Array Transport Network Coupler Improved Light Armor Plating Authchip [Device] Authchip [Processor] Authchip [Armor] Advanced Beam Cannon Advanced Beam Cannon Ion Cannon Rocket Launcher Heavy Hammer [Rating: 21] Favorites ----------- Power Heavy Ion Engine Engine Heavy Ion Engine Power Core Light Nuclear Core Propulsion Wheel Treads Light Treads Leg Aluminum Leg Wheel Wheel Utility Large Storage Unit Device Improved Heat Sink Storage Large Storage Unit Processor Signal Interpreter Protection Light Armor Plating Weapon Light Assault Rifle Energy Gun Beam Rifle Energy Cannon Advanced Beam Cannon Ballistic Gun Light Assault Rifle Launcher Rocket Launcher Impact Weapon Hammer Build | -11 -10 -9 -9 ------- Run | Yrd Mat Mat Min Slots Evolved 2 | . . 2 . Power . | . . . . Propulsion . | . . . . Utility 2 | . . 2 . Weapon . | . . . . Parts Attached 29 | . 16 6 7 Power 3 | . 2 . 1 Engine 2 | . 1 . 1 Core 1 | . 1 . . Reactor . | . . . . Propulsion 8 | . 4 2 2 Treads 2 | . 1 . 1 Leg 1 | . 1 . . Wheel 5 | . 2 2 1 Hover . | . . . . Flight . | . . . . Utility 10 | . 7 2 1 Device 3 | . 2 1 . Storage 3 | . 3 . . Processor 1 | . 1 . . Hackware . | . . . . Protection 3 | . 1 1 1 Artifact . | . . . . Weapon 8 | . 3 2 3 Energy Gun 1 | . . 1 . Energy Cannon 4 | . 1 1 2 Ballistic Gun 1 | . 1 . . Ballistic Cannon . | . . . . Launcher 1 | . . . 1 Special Weapon . | . . . . Impact Weapon 1 | . 1 . . Slashing Weapon . | . . . . Piercing Weapon . | . . . . Special Melee Weapon . | . . . . Unidentified Prototypes . | . . . . Parts Lost 16 | . 1 2 13 Power 2 | . . . 2 Propulsion 6 | . . 2 4 Utility 3 | . . . 3 Weapon 5 | . 1 . 4 Highest Loss Streak 8 | . 1 1 8 To Critical Strikes . | . . . . Average Backups 12 | 6 11 14 11 Power 1 | 1 1 1 . Propulsion 3 | 4 4 2 . Utility 5 | . 4 6 6 Weapon 2 | 1 1 4 4 Tool/Special . | . . . . Unused Backups 19 | . 8 4 7 Power 2 | . 2 . . Propulsion 2 | . 2 . . Utility 7 | . 1 1 5 Weapon 8 | . 3 3 2 Tool/Special . | . . . . Average Slot Usage (%) 96 | . 97 98 81 Engine 7 | . 5 11 8 Core 4 | . 8 . . Leg 7 | . 13 . . Wheel 16 | . 14 20 8 Device 9 | . 10 10 1 Storage 12 | . 14 11 11 Processor 5 | . . 11 11 Protection 5 | . . 11 14 Energy Gun 9 | . 9 10 3 Energy Cannon 6 | . 2 11 11 Ballistic Gun 9 | . 16 . . Peak Build Rating 21 | 6 12 21 21 Average Rating 14 | 6 10 19 16 On Entrance 11 | 6 6 12 21 Naked Turns . | . . . . Heaviest Build 42 | 11 36 39 42 Greatest Support 26 | 20 26 26 26 Greatest Overweight (x) 4 | . 1 2 4 Average Overweight (x) . | . . 1 3 Largest Inventory Capacity 15 | 8 15 15 15 Average Capacity 13 | 8 12 15 15 Most Carried 15 | 6 15 15 15 Average Carried 12 | 6 11 14 11 Final Capacity 15 | 8 15 15 15 Final Carried 15 | 6 15 15 9 Class Distribution -------------------- 100% | Mutant Dominant Class ---------------- Mutant | -10/Materials Mutant | -9/Materials Mutant | -9/Mines Resources | -11 -10 -9 -9 ----------- Run | Yrd Mat Mat Min Matter Collected 491 | 200 146 145 . Remotely . | . . . . Salvage Created 740 | . 322 354 64 Parts 58 | . 27 30 1 Haulers Intercepted 2 | . 1 1 . Recyclers Shooed . | . . . . Parts Field Recycled . | . . . . Retrieved Matter . | . . . . Parts Self-Destructed . | . . . . Prevented . | . . . . Kills | -11 -10 -9 -9 ------- Run | Yrd Mat Mat Min Combat Hostiles Destroyed 38 | . 10 8 20 Guns 15 | . 10 4 1 Cannons 5 | . . 3 2 AOE 17 | . . . 17 Classes Destroyed 8 | . 3 3 2 Builder 1 | . . 1 . Hauler 2 | . 1 1 . Watcher 2 | . . 2 . Swarmer 10 | . 5 5 . Grunt 5 | . 5 . . Sentry 3 | . . 3 . Demolisher 1 | . . . 1 Assembled 19 | . . . 19 Best Kill Streak 19 | . 4 5 19 Combat Bots Only 19 | . 3 5 19 Max Kills in Single Turn 5 | . 2 1 5 Gunslinging 1 | . 1 . . Exploded 5 | . . . 5 Melee . | . . . . Uniques/NPCs Destroyed . | . . . . Combat | -11 -10 -9 -9 -------- Run | Yrd Mat Mat Min Hostile Shots Fired 172 | . 63 42 67 Missed 44 | . 24 11 9 Hits 128 | . 39 31 58 Melee 5 | . . . 5 Projectile 123 | . 39 31 53 AOE 29 | . . . 29 Critical Strikes 1 | . . . 1 Damage Taken 2523 | . 411 345 1767 Core 490 | . 89 78 323 Absorbed by Shields . | . . . . Core Remaining (%) 82 | 100 64 . . Volleys Fired 113 | . 52 30 31 Largest 2 | . 2 2 2 Hottest 128 | . 70 124 128 Shots Fired 198 | . 99 59 40 Gun 130 | . 94 29 7 Cannon 59 | . 5 30 24 Launcher 9 | . . . 9 Special . | . . . . Kinetic 53 | . 53 . . Thermal 136 | . 46 59 31 Explosive 9 | . . . 9 Electromagnetic . | . . . . Robot Hit Streak 16 | . 11 16 9 Robot Miss Streak 5 | . 2 5 4 Penetration Max . | . . . . Secondary Targets 1 | . 1 . . Max Gunslinging Chain 1 | . 1 . . Shots Hit Robots 123 | . 68 35 20 Core Hits 75 | . 22 12 41 Critical Kills . | . . . . Critical Parts Destroyed 1 | . 1 . . Critical Strikes 6 | . 5 1 . Burn 5 | . 4 1 . Destroy 1 | . 1 . . Melee Attacks 1 | . 1 . . Impact 1 | . 1 . . Slashing . | . . . . Piercing . | . . . . Sneak Attacks . | . . . . Combat Hostiles . | . . . . Follow-up Attacks . | . . . . Damage Inflicted 2718 | . 700 619 1399 Guns 998 | . 662 294 42 Cannons 641 | . 35 308 298 Explosions 1059 | . . . 1059 Melee . | . . . . Ramming 20 | . 3 17 . Kinetic 297 | . 297 . . Thermal 1342 | . 400 602 340 Explosive 1059 | . . . 1059 Electromagnetic . | . . . . Impact . | . . . . Slashing . | . . . . Piercing . | . . . . Highest Corruption . | . . . . Average Corruption . | . . . . Corruption Purged . | . . . . Corruption Blocked . | . . . . Overload Shots . | . . . . Overflow Damage 62 | . 8 6 48 Projectiles 14 | . 8 6 . Explosions 48 | . . . 48 Melee . | . . . . Knockbacks . | . . . . Impact . | . . . . Kinetic . | . . . . Secondary . | . . . . Self-Inflicted Damage 117 | . . 8 109 Shots 3 | . . . 3 Rammed 1 | . . 1 . Targets Rammed 2 | . 1 1 . Kicked 1 | . 1 . . Crushed . | . . . . Highest Temperature 466 | . 202 147 466 Average Temperature 95 | . 57 58 225 Received Heat Transfer 286 | . 141 45 100 Effects 3 | . . . 3 Energy Bleed 1 | . . . 1 Matter Decay 1 | . . . 1 Damage (minor) 1 | . . . 1 Siege Activations . | . . . . Martial Activations . | . . . . Shielding Activations . | . . . . Robots Disrupted . | . . . . Combat Hostiles . | . . . . Robots Corrupted . | . . . . Combat Hostiles . | . . . . Parts Fried . | . . . . Impact Corruptions . | . . . . Robots Melted 1 | . . 1 . Combat Hostiles 1 | . . 1 . Parts Melted 9 | . 3 6 . Heat Transferred 3441 | . 1443 1369 629 Parts Sabotaged . | . . . . Parts Stolen . | . . . . Parts Stripped . | . . . . Power Chain Reactions . | . . . . Alert | -11 -10 -9 -9 ------- Run | Yrd Mat Mat Min Maximum Alert Level . | . . . . Low Security (%) 100 | 100 100 100 100 Level 1 . | . . . . Level 2 . | . . . . Level 3 . | . . . . Level 4 . | . . . . Level 5 . | . . . . High Security . | . . . . Max Security . | . . . . Peak Influence 122 | . 112 122 38 Initial 22 | . . 3 22 Average 42 | . 39 56 7 Influence Increases 763 | . 354 345 64 Destroy 0b10 Robot/C 380 | . 200 160 20 Destroy 0b10 Robot/NC 25 | . 5 20 . Destroy Leader 108 | . 52 56 . Successful Hack 55 | . 22 33 . Disable Machine 60 | . 15 45 . Destroy Structure 45 | . . 1 44 Lose Combat Pursuer 90 | . 60 30 . Influence Decreases 763 | . 345 296 122 Entered New Map 42 | . . 6 36 Time Decay 635 | . 335 270 30 Lost Part 86 | . 10 20 56 Squads Dispatched 3 | . 3 . . Investigation 1 | . 1 . . Extermination . | . . . . Reinforcement 2 | . 2 . . Assault . | . . . . Garrison . | . . . . Intercept . | . . . . Searches Triggered . | . . . . Construction Impeded . | . . . . Haulers Reinforced . | . . . . Active Scanning Responses . | . . . . Cargo Convoy Interrupts . | . . . . Stealth | -11 -10 -9 -9 --------- Run | Yrd Mat Mat Min Distress Signals 2 | . 1 1 . Communications Jammed . | . . . . Distress Signals . | . . . . Times Spotted 74 | . 29 23 22 Peak Tracking Total 19 | . 5 7 19 Tactical Retreats 6 | . 3 2 1 Traps | -11 -10 -9 -9 ------- Run | Yrd Mat Mat Min Traps Triggered 1 | . 1 . . Indirectly . | . . . . Trap Hack Attempts . | . . . . Triggered . | . . . . Disarmed . | . . . . Reprogrammed . | . . . . Reused . | . . . . Traps Extracted . | . . . . Installed . | . . . . Triggered . | . . . . Machines | -11 -10 -9 -9 ---------- Run | Yrd Mat Mat Min Machines Disabled 4 | . 1 3 . Max in Single Turn 1 | . 1 1 . Machines Repaired . | . . . . Machines Dismantled . | . . . . Machines Sabotaged . | . . . . Overloaded Fab Kills . | . . . . Hacking | -11 -10 -9 -9 --------- Run | Yrd Mat Mat Min Machines Accessed 16 | . 7 9 . Terminals 15 | . 7 8 . Fabricators . | . . . . Repair Stations . | . . . . Recycling Units . | . . . . Scanalyzers 1 | . . 1 . Garrison Access . | . . . . Total Hacks 53 | . 22 31 . Successful 32 | . 10 22 . Failed 21 | . 12 9 . Catastrophic 4 | . 2 2 . Database Lockouts . | . . . . Manual 23 | . 11 12 . Terminals 45 | . 22 23 . Fabricators . | . . . . Repair Stations . | . . . . Recycling Units . | . . . . Scanalyzers 8 | . . 8 . Garrison Access . | . . . . Terminal Hacks 14 | . 6 8 . Record 3 | . 1 2 . Prototype ID Bank 3 | . 1 2 . Branch Access Points 1 | . . 1 . Emergency Access Points 1 | . . 1 . Locate Traps 1 | . . 1 . Surveillance Status 1 | . 1 . . Recall Reinforcements 1 | . 1 . . Zone Layout 3 | . 2 1 . Fabricator Hacks . | . . . . Repair Station Hacks . | . . . . Recycling Unit Hacks . | . . . . Scanalyzer 8 | . . 8 . Insert Component 3 | . . 3 . Analyze 5 | . . 5 . Garrison Access Hacks . | . . . . Unauthorized Hacks 10 | . 4 6 . Terminals 10 | . 4 6 . Track 2 | . . 2 . Botnet 8 | . 4 4 . Fabricators . | . . . . Repair Stations . | . . . . Recycling Units . | . . . . Scanalyzers . | . . . . Garrison Access . | . . . . Data Cores Recovered . | . . . . Used . | . . . . Hacking Detections 15 | . 7 8 . Full Trace Events . | . . . . Feedback Events . | . . . . Feedback Blocked . | . . . . Robot Schematics Acquired . | . . . . Robots Built . | . . . . Authchips . | . . . . Time . | . . . . Total Robot Build Rating . | . . . . Part Schematics Acquired 3 | . . 3 . Parts Built . | . . . . Authchips . | . . . . Time . | . . . . Total Part Build Rating . | . . . . Parts Repaired . | . . . . Time . | . . . . Parts Recycled . | . . . . Recycled Matter . | . . . . Retrieved Matter . | . . . . Retrieved Components . | . . . . Parts Scanalyzed 3 | . . 3 . Part Schematics Acquired 3 | . . 3 . Parts Damaged . | . . . . Bothacking | -11 -10 -9 -9 ------------ Run | Yrd Mat Mat Min Used RIF Installer . | . . . . Robots Hacked . | . . . . Non-combat . | . . . . Combat . | . . . . Robot Hacks Applied . | . . . . Relay Couplers Released . | . . . . Fabnet Peak Effective % . | . . . . Robots Rewired . | . . . . Allies Hacked . | . . . . Hacks Repelled . | . . . . Allies | -11 -10 -9 -9 -------- Run | Yrd Mat Mat Min Total Allies . | . . . . Largest Group . | . . . . Highest-Rated Group . | . . . . Highest-Rated Ally . | . . . . Total Orders . | . . . . Ally Attacks . | . . . . Total Damage . | . . . . Kills . | . . . . Allies Corrupted . | . . . . Allies Melted . | . . . . Intel | -11 -10 -9 -9 ------- Run | Yrd Mat Mat Min Active Infowar (turns) 731 | . 610 121 . Sensors 121 | . . 121 . Structural 610 | . 610 . . Robot Analysis Total . | . . . . Derelict Logs Recovered . | . . . . Drone Launches . | . . . . Drone Recoveries . | . . . . Exploration | -11 -10 -9 -9 ------------- Run | Yrd Mat Mat Min Turns Passed 1834 | 17 996 666 155 Spaces Moved 1218 | 15 686 469 48 Core . | . . . . Treads . | . . . . Legs 288 | 15 273 . . Wheels 930 | . 413 469 48 Hover . | . . . . Flight . | . . . . Fastest Speed 105 | 120 105 105 105 Average Speed 110 | 120 110 106 134 Slowest Speed 140 | 120 120 130 140 Overloaded Moves . | . . . . Propulsion Burnouts . | . . . . Robots Hopped . | . . . . Potential Cave-ins . | . . . . Cave-ins Triggered . | . . . . Exploration Rate (%) 36 | 2 90 39 13 Regions Visited 3 Branch Regions 1 Pre-discovered Areas . | . . . . Known Exits Taken 2 | . 1 1 . Unknown Exits Taken 1 | 1 . . . Scrap Searched . | . . . . Spaces Dug . | . . . . Terrain Destroyed 72 | . . . 72 Melee . | . . . . Projectile 5 | . . . 5 AOE 67 | . . . 67 Terrain Rammed . | . . . . Walls Destroyed . | . . . . Machines Disabled . | . . . . Actions | -11 -10 -9 -9 --------- Run | Yrd Mat Mat Min Total 1522 | 14 830 581 97 Wait 106 | . 44 52 10 Move 1215 | 14 685 468 48 Hop . | . . . . Pick Up 29 | . 17 12 . Fast Attach 3 | . 2 1 . Attach 11 | . 1 4 6 Detach . | . . . . Swap 19 | . 14 3 2 Drop 23 | . 13 10 . Fire 113 | . 52 30 31 Melee 1 | . 1 . . Ram 1 | . . 1 . Kick 1 | . 1 . . Crush . | . . . . Escape Stasis . | . . . . Rewire . | . . . . Trap . | . . . . Miscellaneous . | . . . . Route ------- -11/Scrapyard -10/Materials (discovered 3 exits: *Mat x3) -9/Materials (discovered 2 exits: *Mat / *Min) -9/Mines History --------- Turn | Location | Event 1 | -11/Scrapyard | Discovered new exit (range 3) 18 | -11/Scrapyard | Entered Materials 243 | -10/Materials | Discovered new exit (range 15) 301 | -10/Materials | Build established: Mutant 589 | -10/Materials | Discovered new exit (range 10) 801 | -10/Materials | Discovered new exit (range 16) 1012 | -10/Materials | Identified exit to Materials 1014 | -10/Materials | Entered another Materials area 1014 | -9/Materials | Evolved 2 slots: Utility x2 1257 | -9/Materials | Discovered new exit (range 3) 1259 | -9/Materials | Identified exit to Materials 1525 | -9/Materials | Identified exit to Mines 1680 | -9/Materials | Entered Mines 1681 | -9/Mines | Assembled infested the area 1747 | -9/Mines | Destroyed 19 combat bots 1755 | -9/Mines | Lost 5 parts (1p2n1u1w) 1797 | -9/Mines | Core integrity fell below 50% 1805 | -9/Mines | Core integrity fell below 20% 1835 | -9/Mines | Destroyed by D-53 Grenadier with Mini Grenade Launcher Last Messages --------------- 01790_ Wheel destroyed. 01795_ The unstable cave ceiling collapses. 01797_ D-53 Grenadier heat short circuits Launcher Guidance Computer. 01799_ The unstable cave ceiling collapses. 01802_ Hvy. Ion Engine destroyed. 01804_ D-53 Grenadier destroyed. 01805_ Lgt. Treads destroyed. 01807_ The unstable cave ceiling collapses. 01822_ Ion Cannon destroyed. 01822_ Adv. Beam Cannon destroyed. 01823_ The unstable cave ceiling collapses. 01824_ Overheating: Matter decay (-21). 01824_ The unstable cave ceiling collapses. 01830_ Overheating: Energy bleed (-5). 01831_ The unstable cave ceiling collapses. 01833_ Overheating: Lrg. Storage Unit damaged (-41). 01833_ The unstable cave ceiling collapses. 01835_ Adv. Beam Cannon destroyed. Map ----- +----------------------------------------------------+ | ??????????????????????????????????????? | | ??????????????????????????????????????? | | ?????????????????? ??????????????????? | | ??????????????###? ????????????????? | | ??????????????# # ????????????????? | | ????????## #### ?????????????????? | | ???????##" # ?????????????????? | | ???????# % ?????????????????? | | ???????? %% ?????????????????? | | ????????# % ????####??????????? | | ????????## # ???# ???????????? | | ????????# # ???# ???????????? | | ????????# ## ##### #???????????? | | ?????????# % # # #???????????? | | ?????????# "# # # #???????????? | | ?????????# # # # # #???????????? | | ?????????# ## #???????????? | | ????????????# ???????????? | | ????????????## ##??????????? | | ?????????????### #### % #####??????? | | ??????????????## #??# ## ##?????? | | ?????????????## ##?# % #?????? | | ????????????## #### d ###??????? | | ???????????## # # #??????? | | ??????????## #??????? | | ??????????# @ #??????? | | ??????????## # # #??????? | | ???????????## #### #??????? | | ????????????###???## ###??????? | | ???????????????????#### ##????????? | | ??????????????????????#######?????????? | | ??????????????????????????????????????? | | | | | | | | | | | | | | | | | | | | | | | | | | | | | | | | | | | | | +----------------------------------------------------+ Best States ------------- Heat Dissipation 42 Energy Generation 14 Energy Capacity 280 Matter Stores 300 Matter Capacity 300 Sight Range 16 Robot Scan Range 14 Terrain Scan Density 10 Armor Coverage 300 Evasion (%) 55 Recoil Reduction 1 Authchip Count 3 Item Schematics ----------------- Transport Network Coupler | -9/Materials | Scanalyzed Imp. Light Armor Plating | -9/Materials | Scanalyzed Target Analyzer | -9/Materials | Scanalyzed Robot Schematics ------------------ None Fabricated ------------ Nothing Repaired ---------- Nothing Alien Tech Used ----------------- None Achievements -------------- Exterminator Challenges ------------ None Game ------ Seed DimensionalActuatorRail Manual? 0 Play Time 00:31:37 Cumulative 204.1 hours Start 2025.10.17 @ 19:45:13 End 2025.10.17 @ 20:14:12 Sessions 1 Manual Loads 0 Difficulty Rogue Special Mode None Game No. 123 Rogue 123 Adventurer 0 Explorer 0 Win Type - Total 8 Types 7/0/1/0/0/0/0/0/0/0 Lore% 34 Gallery% 57 Achievement% 58 Wizard Run 0 Options --------- Layout 1 ASCII 0 Keyboard 0 Movement Mouse Keybinds 0 Fullscreen 1 Font 24/Smallcaps Map View 50x35 Zoom Use 0% Tactical HUD 1 Map Filters NONE Filters NONE Steam 1 RUN: abed277b-b16b-4e02-8870-adba322c9f09